Cogmind - Beta 16 @@@ ROGUE MODE // 2026.01.21 @ 18:18:26 Player: YoKa Result: Destroyed by Y-45 Defender with Beam Rifle Performance ------------- Evolutions (2) 1000 Regions Visited (5) 1000 Robots Destroyed (45) 225 Value Destroyed (1168) 1168 Prototype IDs (30) 600 Alien Tech Used (0) 0 Bonus (598) 598 TOTAL SCORE: 4591 Bonus ------- Follower Combat Kills 298 Aligned with FarCom 300 Cogmind --------- Core Integrity 0/550 Matter 300/300 Energy 100/100 System Corruption 0% Temperature Cool (9) Movement Core (550) Ox10 Location -8/Materials Parts ------- > --- POWER (1) -------- (None) > --- PROPULSION (3) --- (None) > --- UTILITY (5) ------ Medium Storage Unit Large Storage Unit > --- WEAPON (2) ------- Pulse Rifle > --- INVENTORY (15) --- Aluminum Leg Aluminum Leg Improved VTOL Module Improved Heat Sink High-capacity Storage Unit Improved Light Armor Plating Improved Light Armor Plating Improved Light Armor Plating Heavy Assault Rifle Improved Datajack Plasma Cutter Peak State ------------ > --- POWER ------------ (None) > --- PROPULSION ------- Light Treads > --- UTILITY ---------- Large Storage Unit Hacking Suite Hacking Suite > --- WEAPON ----------- Bore Cannon Field Lobotomy Kit > --- INVENTORY -------- Light Ion Engine Medium Storage Unit High-capacity Storage Unit Light Assault Rifle Enhanced Autogun Improved Datajack [Rating: 24] Favorites ----------- Power Ion Engine Engine Ion Engine Power Core Light Nuclear Core Propulsion Light Treads Treads Light Treads Leg Aluminum Leg Utility Hacking Suite Device Tractor Beam Storage Small Storage Unit Hackware Hacking Suite Weapon Light Assault Rifle Energy Gun EM Pulse Gun Energy Cannon EM Pulse Cannon Ballistic Gun Light Assault Rifle Ballistic Cannon Bore Cannon Special Weapon Field Lobotomy Kit Special Melee Weapon Datajack Build | -11 -10 -10 -10 -9 -8 ------- Run | Yrd Mat Min Exi Min Mat Slots Evolved 4 | . . . . . 4 Power . | . . . . . . Propulsion 1 | . . . . . 1 Utility 3 | . . . . . 3 Weapon . | . . . . . . Parts Attached 40 | 8 4 4 3 5 16 Power 7 | 1 1 2 . . 3 Engine 5 | 1 1 2 . . 1 Core 2 | . . . . . 2 Reactor . | . . . . . . Propulsion 9 | 2 . 1 . 1 5 Treads 4 | 2 . 1 . 1 . Leg 5 | . . . . . 5 Wheel . | . . . . . . Hover . | . . . . . . Flight . | . . . . . . Utility 8 | 2 2 . 2 . 2 Device 1 | 1 . . . . . Storage 4 | 1 1 . 2 . . Processor . | . . . . . . Hackware 3 | . 1 . . . 2 Protection . | . . . . . . Artifact . | . . . . . . Weapon 16 | 3 1 1 1 4 6 Energy Gun 5 | 2 1 . . 1 1 Energy Cannon 1 | . . . . . 1 Ballistic Gun 6 | 1 . 1 . 1 3 Ballistic Cannon 1 | . . . . 1 . Launcher . | . . . . . . Special Weapon 2 | . . . . 1 1 Impact Weapon . | . . . . . . Slashing Weapon . | . . . . . . Piercing Weapon . | . . . . . . Special Melee Weapon 1 | . . . 1 . . Unidentified Prototypes 1 | . . . . . 1 Parts Lost 28 | . 1 3 . 5 19 Power 6 | . . 1 . 1 4 Propulsion 9 | . . 1 . 1 7 Utility 3 | . . . . 1 2 Weapon 10 | . 1 1 . 2 6 Highest Loss Streak 7 | . 1 3 . 4 7 To Critical Strikes . | . . . . . . Average Backups 6 | 2 6 4 7 6 7 Power . | . 1 . 1 . . Propulsion . | . . 1 1 . . Utility 2 | . 2 2 2 3 2 Weapon 1 | . 1 . 1 . 1 Tool/Special . | . . . . . . Unused Backups 12 | . . . 3 . 9 Power 2 | . . . 2 . . Propulsion 3 | . . . . . 3 Utility 5 | . . . 1 . 4 Weapon 1 | . . . . . 1 Tool/Special 1 | . . . . . 1 Average Slot Usage (%) 86 | . 99 99 86 76 72 Engine 10 | . 14 13 14 13 1 Core 2 | . . . . . 6 Treads 19 | . 28 27 28 27 1 Leg 6 | . . . . . 21 Device 1 | . 13 . . . . Storage 14 | . 14 14 14 14 15 Hackware 9 | . . 14 14 2 9 Energy Gun 4 | . 25 1 . 2 1 Energy Cannon 1 | . . . . . 4 Ballistic Gun 11 | . 2 26 2 11 8 Special Melee Weapon 2 | . . . 12 . . Peak Build Rating 24 | 7 9 9 10 14 24 Average Rating 10 | 5 7 8 8 8 15 On Entrance 7 | . 7 9 9 9 11 Avg Prop Armor Cover (%) . | . . . . . . Naked Turns . | . . . . . . Heaviest Build 48 | 12 48 13 46 33 44 Greatest Support 40 | 40 40 40 40 40 40 Greatest Overweight (x) 12 | 2 1 . 1 . 12 Average Overweight (x) . | . . . . . . Largest Inventory Capacity 20 | 8 20 8 20 15 15 Average Capacity 11 | 7 8 8 10 15 15 Most Carried 11 | 5 8 7 9 7 11 Average Carried 6 | 2 6 4 7 6 7 Final Capacity 15 | 8 8 8 15 15 15 Final Carried 11 | 2 6 5 8 6 11 Class Distribution -------------------- 72% | Mutant 25% | Scavenger-Mutant Dominant Class ---------------- Mutant | -10/Materials Mutant | -10/Mines Mutant | -10/Exiles Mutant | -9/Mines Scavenger-Mutant | -8/Materials Resources | -11 -10 -10 -10 -9 -8 ----------- Run | Yrd Mat Min Exi Min Mat Matter Collected 1112 | 284 84 35 . 201 508 Remotely 118 | 45 73 . . . . Salvage Created 1589 | 91 583 40 . 78 797 Parts 93 | 3 44 6 . 4 36 Haulers Intercepted 1 | . 1 . . . . Recyclers Shooed . | . . . . . . Parts Field Recycled . | . . . . . . Retrieved Matter . | . . . . . . Parts Self-Destructed . | . . . . . . Prevented . | . . . . . . Parts Restored . | . . . . . . Kills | -11 -10 -10 -10 -9 -8 ------- Run | Yrd Mat Min Exi Min Mat Combat Hostiles Destroyed 32 | . 12 3 . 5 12 Guns 26 | . 10 3 . 3 10 Cannons 4 | . . . . 2 2 AOE 2 | . 2 . . . . Classes Destroyed 10 | 1 6 . . 1 2 Worker 3 | . 1 . . 1 1 Builder 1 | . . . . . 1 Hauler 1 | . 1 . . . . Recycler 3 | 1 . . . . 2 Operator 5 | . 3 . . . 2 Watcher 3 | . 2 . . . 1 Swarmer 8 | . 3 3 . 2 . Grunt 20 | . 9 . . . 11 Duelist 1 | . . . . . 1 Assembled 3 | . . . . 3 . Best Kill Streak 5 | 1 4 3 . 2 5 Combat Bots Only 4 | . 4 3 . 2 3 Max Kills in Single Turn 1 | 1 1 1 . 1 1 Gunslinging . | . . . . . . Exploded 1 | . 1 . . . . Melee . | . . . . . . Uniques/NPCs Destroyed . | . . . . . . Combat | -11 -10 -10 -10 -9 -8 -------- Run | Yrd Mat Min Exi Min Mat Hostile Shots Fired 331 | . 34 36 . 42 219 Missed 87 | . 12 6 . 6 63 Hits 244 | . 22 30 . 36 156 Melee 6 | . . . . 4 2 Projectile 238 | . 22 30 . 32 154 AOE 2 | . . . . 2 . Critical Strikes 8 | . . 1 . 1 6 Damage Taken 3325 | . 283 257 . 605 2180 Core 793 | . 24 33 . 177 559 Absorbed by Shields . | . . . . . . Core Remaining (%) 53 | 100 . . . 6 . Volleys Fired 182 | 4 36 12 . 23 107 Largest 2 | 2 2 2 . 2 2 Hottest 86 | 60 80 60 . 48 86 Shots Fired 260 | 8 62 18 . 38 134 Gun 221 | 8 62 18 . 32 101 Cannon 32 | . . . . 5 27 Launcher . | . . . . . . Special 7 | . . . . 1 6 Kinetic 158 | 4 4 16 . 37 97 Thermal 20 | . . . . . 20 Explosive . | . . . . . . Electromagnetic 79 | 4 58 2 . . 15 Robot Hit Streak 8 | 5 8 5 . 5 8 Robot Miss Streak 6 | 1 2 2 . 3 6 Penetration Max . | . . . . . . Secondary Targets 3 | . 1 1 . . 1 Max Gunslinging Chain 1 | . 1 1 . . 1 Shots Hit Robots 165 | 7 40 12 5 24 77 Core Hits 81 | 2 22 8 . 12 37 Critical Kills 4 | . . . . 2 2 Critical Parts Destroyed 1 | . . . . . 1 Critical Strikes 6 | . 1 . . 2 3 Destroy 5 | . . . . 2 3 Corrupt 1 | . 1 . . . . Melee Attacks 5 | . . . 5 . . Impact . | . . . . . . Slashing . | . . . . . . Piercing . | . . . . . . Sneak Attacks 5 | . . . 5 . . Combat Hostiles . | . . . . . . Follow-up Attacks . | . . . . . . Damage Inflicted 2454 | 66 662 142 . 239 1345 Guns 1861 | 66 552 98 . 163 982 Cannons 401 | . . . . 60 341 Explosions 110 | . 110 . . . . Melee . | . . . . . . Ramming 82 | . . 44 . 16 22 Kinetic 1345 | 28 6 98 . 223 990 Thermal 298 | . 110 . . . 188 Explosive . | . . . . . . Electromagnetic 729 | 38 546 . . . 145 Impact . | . . . . . . Slashing . | . . . . . . Piercing . | . . . . . . Highest Corruption 5 | . . . . 5 . Average Corruption 4 | . . . . 4 . Corruption Purged . | . . . . . . Corruption Blocked . | . . . . . . Effects 19 | . . . . 19 . Message Errors 4 | . . . . 4 . Matter Fused 6 | . . . . 6 . Heat Flow Errors 3 | . . . . 3 . Energy Discharges 2 | . . . . 2 . Parts Fused 1 | . . . . 1 . Data Loss (minor) 2 | . . . . 2 . Weapon Failures 1 | . . . . 1 . Overload Shots . | . . . . . . Overflow Damage 81 | . 37 . . . 44 Projectiles 44 | . . . . . 44 Explosions 37 | . 37 . . . . Melee . | . . . . . . Knockbacks 2 | . . . . . 2 Impact . | . . . . . . Kinetic 2 | . . . . . 2 Secondary . | . . . . . . Self-Inflicted Damage 54 | . 54 . . . . Shots 2 | . 2 . . . . Rammed 16 | . . 14 . 2 . Targets Rammed 21 | . . 14 . 2 5 Kicked 5 | . . . . . 5 Crushed . | . . . . . . Highest Temperature 270 | 40 108 40 . 270 148 Average Temperature 36 | 22 29 23 . 94 23 Received Heat Transfer 1064 | . 108 . . 20 936 Siege Activations . | . . . . . . Martial Activations . | . . . . . . Shielding Activations . | . . . . . . Robots Disrupted . | . . . . . . Combat Hostiles . | . . . . . . Robots Corrupted . | . . . . . . Combat Hostiles . | . . . . . . Parts Fried 3 | . 1 . . . 2 Impact Corruptions . | . . . . . . Robots Melted . | . . . . . . Combat Hostiles . | . . . . . . Parts Melted . | . . . . . . Heat Transferred 557 | . 150 . . . 407 Parts Sabotaged . | . . . . . . Parts Stolen . | . . . . . . Parts Stripped . | . . . . . . Power Chain Reactions 2 | . 2 . . . . Alert | -11 -10 -10 -10 -9 -8 ------- Run | Yrd Mat Min Exi Min Mat Maximum Alert Level . | . . . . . . Low Security (%) 100 | 100 100 100 . 100 100 Level 1 . | . . . . . . Level 2 . | . . . . . . Level 3 . | . . . . . . Level 4 . | . . . . . . Level 5 . | . . . . . . High Security . | . . . . . . Max Security . | . . . . . . Peak Influence 164 | 5 119 50 . 127 164 Initial 43 | . . 43 . . 33 Average 22 | . 28 2 . 36 33 Influence Increases 1356 | 5 359 70 . 261 661 Destroy 0b10 Robot/C 860 | . 240 60 . 160 400 Destroy 0b10 Robot/NC 80 | 5 35 . . 5 35 Destroy Leader 148 | . 46 10 . 20 72 Allied During Kill 24 | . . . . 10 14 Successful Hack 5 | . . . . 5 . Disable Machine 75 | . 15 . . 30 30 Destroy Structure 74 | . 8 . . 31 35 Lose Combat Pursuer 90 | . 15 . . . 75 Influence Decreases 1356 | 5 246 183 . 173 749 Entered New Map 125 | . . 70 . . 55 Time Decay 974 | 5 236 103 . 173 457 Lost Part 197 | . 10 10 . . 177 Lost Ally 60 | . . . . . 60 Squads Dispatched 7 | . 3 . . . 4 Investigation 2 | . 1 . . . 1 Extermination . | . . . . . . Reinforcement 4 | . 2 . . . 2 Assault . | . . . . . . Garrison 1 | . . . . . 1 Intercept . | . . . . . . Searches Triggered . | . . . . . . Construction Impeded 1 | . . . . . 1 Haulers Reinforced . | . . . . . . Active Scanning Responses . | . . . . . . Cargo Convoy Interrupts . | . . . . . . Stealth | -11 -10 -10 -10 -9 -8 --------- Run | Yrd Mat Min Exi Min Mat Distress Signals 6 | . . . . 1 5 Communications Jammed . | . . . . . . Distress Signals . | . . . . . . Times Spotted 94 | . 22 3 . 14 55 Peak Tracking Total 7 | . 3 3 . 4 7 Tactical Retreats 9 | . 1 . . 3 5 Traps | -11 -10 -10 -10 -9 -8 ------- Run | Yrd Mat Min Exi Min Mat Traps Triggered 1 | . 1 . . . . Indirectly . | . . . . . . Trap Hack Attempts . | . . . . . . Triggered . | . . . . . . Disarmed . | . . . . . . Reprogrammed . | . . . . . . Reused . | . . . . . . Traps Extracted . | . . . . . . Installed . | . . . . . . Triggered . | . . . . . . Machines | -11 -10 -10 -10 -9 -8 ---------- Run | Yrd Mat Min Exi Min Mat Machines Disabled 5 | . 1 . . 2 2 Max in Single Turn 1 | . 1 . . . 1 Machines Repaired . | . . . . . . Machines Dismantled . | . . . . . . Machines Sabotaged . | . . . . . . Overloaded Fab Kills . | . . . . . . Hacking | -11 -10 -10 -10 -9 -8 --------- Run | Yrd Mat Min Exi Min Mat Machines Accessed 12 | . 3 . 5 1 3 Terminals 7 | . 3 . . 1 3 Fabricators . | . . . . . . Repair Stations . | . . . . . . Recycling Units . | . . . . . . Scanalyzers . | . . . . . . Garrison Access . | . . . . . . Total Hacks 63 | . 9 . 43 3 8 Successful 51 | . 1 . 43 2 5 Failed 12 | . 8 . . 1 3 Catastrophic 1 | . 1 . . . . Database Lockouts . | . . . . . . Manual 21 | . 9 . 1 3 8 Terminals 20 | . 9 . . 3 8 Fabricators . | . . . . . . Repair Stations . | . . . . . . Recycling Units . | . . . . . . Scanalyzers . | . . . . . . Garrison Access . | . . . . . . Terminal Hacks 44 | . . . 43 . 1 Record 42 | . . . 42 . . Scanalyzer Index 1 | . . . . . 1 Proto ID Catalog 1 | . . . 1 . . Fabricator Hacks . | . . . . . . Repair Station Hacks . | . . . . . . Recycling Unit Hacks . | . . . . . . Scanalyzer . | . . . . . . Garrison Access Hacks . | . . . . . . Unauthorized Hacks 7 | . 1 . . 2 4 Terminals 7 | . 1 . . 2 4 Botnet 3 | . . . . 1 2 Operators 4 | . 1 . . 1 2 Fabricators . | . . . . . . Repair Stations . | . . . . . . Recycling Units . | . . . . . . Scanalyzers . | . . . . . . Garrison Access . | . . . . . . Data Cores Recovered 1 | . 1 . . . . Used . | . . . . . . Hacking Detections 7 | . 3 . . 1 3 Full Trace Events 2 | . 1 . . . 1 Feedback Events . | . . . . . . Feedback Blocked . | . . . . . . Robot Schematics Acquired . | . . . . . . Robots Built . | . . . . . . Authchips . | . . . . . . Time . | . . . . . . Total Robot Build Rating . | . . . . . . Part Schematics Acquired . | . . . . . . Parts Built . | . . . . . . Authchips . | . . . . . . Time . | . . . . . . Total Part Build Rating . | . . . . . . Part Studies Acquired . | . . . . . . Parts Repaired . | . . . . . . Time . | . . . . . . Parts Recycled . | . . . . . . Recycled Matter . | . . . . . . Retrieved Matter . | . . . . . . Retrieved Components . | . . . . . . Parts Scanalyzed . | . . . . . . Part Schematics Acquired . | . . . . . . Parts Damaged . | . . . . . . Bothacking | -11 -10 -10 -10 -9 -8 ------------ Run | Yrd Mat Min Exi Min Mat Used RIF Installer . | . . . . . . Robots Hacked 3 | . . . 3 . . Non-combat 3 | . . . 3 . . Combat . | . . . . . . Robot Hacks Applied 3 | . . . 3 . . parse_system 3 | . . . 3 . . Relay Couplers Released . | . . . . . . Fabnet Peak Effective % . | . . . . . . Robots Rewired . | . . . . . . Allies Hacked . | . . . . . . Hacks Repelled . | . . . . . . Allies | -11 -10 -10 -10 -9 -8 -------- Run | Yrd Mat Min Exi Min Mat Total Allies 5 | . . 2 . 1 2 Largest Group 2 | . . 2 2 1 2 Highest-Rated Group 45 | . . 42 42 34 45 Highest-Rated Ally 34 | . . 31 31 34 34 Total Orders 3 | . . . . 3 . ROAM 1 | . . . . 1 . FOLLOW 2 | . . . . 2 . Ally Attacks 27 | . . . . 4 23 Total Damage 1183 | . . . . 446 737 Kills 14 | . . . . 6 8 Allies Corrupted . | . . . . . . Allies Melted . | . . . . . . Field Lobotomies 3 | . . . . 1 2 Intel | -11 -10 -10 -10 -9 -8 ------- Run | Yrd Mat Min Exi Min Mat Active Infowar (turns) . | . . . . . . Robot Analysis Total . | . . . . . . Derelict Logs Recovered 2 | . . 1 . 1 . Drone Launches . | . . . . . . Drone Recoveries . | . . . . . . Exploration | -11 -10 -10 -10 -9 -8 ------------- Run | Yrd Mat Min Exi Min Mat Turns Passed 6792 | 129 811 1815 1140 865 2032 Spaces Moved 3532 | 78 351 1080 687 489 847 Core 34 | 25 . . . . 9 Treads 2765 | 53 351 1080 687 489 105 Legs 733 | . . . . . 733 Wheels . | . . . . . . Hover . | . . . . . . Flight . | . . . . . . Fastest Speed 50 | 50 160 160 160 160 120 Average Speed 167 | 131 162 160 160 160 191 Slowest Speed 650 | 160 240 160 240 160 650 Overloaded Moves . | . . . . . . Propulsion Burnouts . | . . . . . . Robots Hopped . | . . . . . . Potential Cave-ins . | . . . . . . Cave-ins Triggered . | . . . . . . Exploration Rate (%) 63 | 7 57 100 93 86 37 Regions Visited 5 Branch Regions 3 Pre-discovered Areas 2 | . . 1 1 . . Known Exits Taken . | . . . . . . Unknown Exits Taken 5 | 1 1 1 1 1 . Scrap Searched 1 | . . 1 . . . Spaces Dug . | . . . . . . Terrain Destroyed 18 | . 7 . . 4 7 Melee . | . . . . . . Projectile 11 | . . . . 4 7 AOE 7 | . 7 . . . . Terrain Rammed . | . . . . . . Walls Destroyed . | . . . . . . Machines Disabled . | . . . . . . Actions | -11 -10 -10 -10 -9 -8 --------- Run | Yrd Mat Min Exi Min Mat Total 4139 | 96 530 1143 724 538 1108 Wait 280 | . 126 32 17 11 94 Move 3527 | 77 350 1079 686 488 847 Hop . | . . . . . . Pick Up 50 | 7 7 2 6 4 24 Fast Attach 3 | 2 1 . . . . Attach 37 | 5 2 3 1 7 19 Detach 5 | . . . 2 1 2 Swap 19 | 1 5 1 3 1 8 Drop 10 | . 3 . 4 1 2 Fire 182 | 4 36 12 . 23 107 Melee 5 | . . . 5 . . Ram . | . . . . . . Kick 5 | . . . . . 5 Crush 16 | . . 14 . 2 . Escape Stasis . | . . . . . . Rewire . | . . . . . . Trap . | . . . . . . Miscellaneous . | . . . . . . Route ------- -11/Scrapyard -10/Materials (discovered 2 exits: [*Mat] / [*Min]) -10/Mines (discovered 4 exits: [*Mat x2] / *Exi / [*Sub]) -10/Exiles (discovered 2 exits: *Min x2) -9/Mines -8/Materials (discovered 1 exit: Sto) History --------- Turn | Location | Event 5 | -11/Scrapyard | Discovered new exit (range 16) 130 | -11/Scrapyard | Entered Materials 306 | -10/Materials | Build established: Mutant 554 | -10/Materials | Discovered new exit (range 9) 730 | -10/Materials | Derelicts attacked the area 921 | -10/Materials | Discovered new exit (range 13) 941 | -10/Materials | Entered Mines 958 | -10/Mines | Found a hidden stash of uninstalled traps 1137 | -10/Mines | Discovered new exit (range 7) 1227 | -10/Mines | Lost 3 parts (1p1n1w) 1228 | -10/Mines | Discovered new exit (range 5) 1747 | -10/Mines | Discovered new exit (range 5) 1805 | -10/Mines | Learned location of Storage (-8) 1916 | -10/Mines | Deemed a non-threat by the Exiles lab entrance 1916 | -10/Mines | Discovered new exit (range 5) 2756 | -10/Mines | Entered Exiles 2756 | -10/Exiles | Accompanied by 2 allies 2786 | -10/Exiles | Led the pair of lost Derelicts to a safe place 2813 | -10/Exiles | Discovered new exit (range 14) 2853 | -10/Exiles | Met 8R-AWN 2882 | -10/Exiles | Met EX-HEX 2978 | -10/Exiles | Met EX-BIN 3007 | -10/Exiles | Aligned with FarCom system 3008 | -10/Exiles | Given EX-Vault access code 3061 | -10/Exiles | Opened EX-Vault 3109 | -10/Exiles | Found Field Lobotomy Kit 3211 | -10/Exiles | Warned to stay clear of 0b10 Research branches 3256 | -10/Exiles | Met EX-DEC 3301 | -10/Exiles | Learned location of Zion (-7) 3436 | -10/Exiles | Discovered new exit (range 14) 3649 | -10/Exiles | Visited The Gauntlet 3896 | -10/Exiles | Left Exiles lab with Field Lobotomy Kit 3896 | -10/Exiles | Entered Mines 3958 | -9/Mines | Met a Derelict bent on vengeance 3975 | -9/Mines | Assembled infested the area 3980 | -9/Mines | Assisted by a Guerilla fighting off Assembled 4038 | -9/Mines | Core integrity fell below 50% 4092 | -9/Mines | Lost 4 parts (1p1n1u1w) 4322 | -9/Mines | Assimilated D-53 Grenadier with FLK Orb 4326 | -9/Mines | Core integrity fell below 20% 4734 | -9/Mines | Discovered new exit (range 15) 4747 | -9/Mines | Learned Materials terminal intel 4761 | -9/Mines | Entered Materials 4761 | -8/Materials | Accompanied by 1 ally 4761 | -8/Materials | Evolved 4 slots: Propulsion x1, Utility x3 4762 | -8/Materials | Identified exit to Storage 4763 | -8/Materials | Loaded intel: 10 terminal locations 5014 | -8/Materials | Assimilated G-50 Soldier with FLK Orb 5017 | -8/Materials | Assimilated G-47 Trooper with FLK Orb 5055 | -8/Materials | Core integrity fell below 50% 5108 | -8/Materials | Lost 7 parts (2p1n1u3w) 5536 | -8/Materials | Build established: Scavenger-Mutant 5757 | -8/Materials | Garrison activated, responded to threat 6775 | -8/Materials | Core integrity fell below 20% 6793 | -8/Materials | Destroyed by Y-45 Defender with Beam Rifle Last Messages --------------- G-47 Trooper destroyed. Hvy. Assault Rifle destroyed. EM Pulse Cannon destroyed. G-47 Trooper destroyed. Acquired Lgt. Nuclear Core. R-06 Scavenger collects Imp. Heat Sink. R-06 Scavenger collects Aluminum Leg. Aluminum Leg destroyed. G-50 Soldier destroyed. K-01 Serf collects debris. Acquired Aluminum Leg. K-01 Serf collects debris. Acquired 53 matter. K-01 Serf collects debris. Acquired Prototype Flight Unit. Aluminum Leg destroyed. Critical hit (Burn: +37). Lgt. Nuclear Core destroyed. Aluminum Leg destroyed. Hacking Suite destroyed. Map ----- +----------------------------------------------------+ | #????????????????????? | | #????????????????????? | | #????????????????????? | | ######+########### #????????????????????? | | ?# # # #????????????????????? | | ?# #""" # #????????????????????? | | ?# #""" # #????????????????????? | | ?# #""" + #????????????????????? | | ?# # # #????????????????????? | | ?# # !# #????????????????????? | | ?# #+###### #????????????????????? | | ?# ! # #????# #????????????????????? | | ?# # #????# #????????????????????? | | ?########## #????# #????????????????????? | | ??????????# #????# #????????????????????? | | ########### #????# #????????##??????????? | | # """"""" # #????# #???????? #??????????? | | # """"""" # ###### #??????? #??????????? | | # """"""% # #??????? #??????????? | | # """"""%%+% #?????? #??????????? | | # """"""" # #?????? #??????????? | | # ######## #????? *???????????? | | # #??????# #????? ????????????? | | # #??????# #???? ?????????????? | | ###########??????# #####;##### #??????? | | ?????????????????# Y us @ k #??????? | | ?????????????????+ s #??????? | | ?????????????????# s #??????? | | ?????????????????# #### ########??????? | | ?????????????????# #??# Y #?????????????? | | ?????????????????# #??# #?????????????? | | ?????????????????# #??# #?????????????? | | ?????????????????# #??# #?????????????? | | ?????????????????# #??# #?????????????? | | ?????????????????# ??? #?????????????? | | ????????????????? ???? ?????????????? | | T"??????????????? ???? ?????????????? | | ""?????????????? ???? +????????????? | | ????????????????## ???? #????????????? | | ?????????????????## ???? #????????????? | | ?????????????????????????###??????????????? | | ??????????????????????????????????????????? | | ??????????????????????????????????????????? | | ??????????????????????????????????????????? | | ??????????????????????????????????????????? | | ??????????????????????????????????????????? | | ??????????????????????????????????????????? | | ??????????????????????????????????????????? | | ??????????????????????????????????????????? | | ??????????????????????????????????????????? | +----------------------------------------------------+ Best States ------------- Heat Dissipation 31 Energy Generation 14 Energy Capacity 250 Matter Stores 300 Matter Capacity 300 Sight Range 16 Terrain Scan Density 10 Evasion (%) 55 Recoil Reduction 2 Offensive Hacking 20 Item Schematics ----------------- None Robot Schematics ------------------ None Fabricated ------------ Nothing Repaired ---------- Nothing Studied --------- None Alien Tech Used ----------------- None Achievements -------------- Analysis Probe Close Call Challenges ------------ None Game ------ Seed ThunderHeartStripper Manual? 0 Play Time 00:56:45 Cumulative 9.6 hours Start 2026.01.21 @ 17:12:06 End 2026.01.21 @ 18:18:26 Sessions 1 Manual Loads 0 Difficulty Rogue Special Mode None Game No. 13 Rogue 13 Adventurer 0 Explorer 0 Win Type - Total 0 Types 0/0/0/0/0/0/0/0/0/0 Lore% 12 Gallery% 15 Achievement% 15 Wizard Run 0 Options --------- Layout 2 ASCII 0 Keyboard 0 Movement Mouse Keybinds 0 Fullscreen 1 Font 24/Smallcaps Map View 50x44 Zoom Use 0% Tactical HUD 0 Map Filters NONE Filters NONE Steam 1 RUN: d9a35196-afcc-4107-a369-adb111c83c27